[Event "Titled Tuesday Blitz September 28 2021"]
[White "Riehle, Marco"]
[Black "Moskalenko, Alexander"]
[WhiteFideId "12904392"]
[BlackFideId "4155351"]
[WhiteElo "2462"]
[BlackElo "2515"]
[Result "1-0"]
[Round "02"]
[TimeControl "180+1"]
[Date "2021.09.28"]
[WhiteClock "0:01:16"]
[BlackClock "0:00:17"]

1. e4 {[%clk 0:03:00]}  d6 {[%clk 0:02:59]} 2. d4 {[%clk 0:03:00]}  Nf6 {[%clk 0:03:00]} 3. f3 {[%clk 0:02:59]}  e5 {[%clk 0:02:59]} 4. d5 {[%clk 0:02:58]}  g6 {[%clk 0:02:58]} 5. Be3 {[%clk 0:02:58]}  Nfd7 {[%clk 0:02:54]} 6. Qd2 {[%clk 0:02:57]}  a5 {[%clk 0:02:40]} 7. c4 {[%clk 0:02:56]}  Nc5 {[%clk 0:02:39]} 8. Nc3 {[%clk 0:02:54]}  f5 {[%clk 0:02:39]} 9. exf5 {[%clk 0:02:54]}  gxf5 {[%clk 0:02:38]} 10. O-O-O {[%clk 0:02:44]}  Bg7 {[%clk 0:02:37]} 11. g4 {[%clk 0:02:35]}  fxg4 {[%clk 0:02:35]} 12. fxg4 {[%clk 0:02:36]}  Bxg4 {[%clk 0:02:34]} 13. Be2 {[%clk 0:02:35]}  Qh4 {[%clk 0:02:27]} 14. Nf3 {[%clk 0:02:26]}  Bxf3 {[%clk 0:02:25]} 15. Bxf3 {[%clk 0:02:27]}  O-O {[%clk 0:02:25]} 16. Be2 {[%clk 0:02:22]}  Nba6 {[%clk 0:02:15]} 17. Rhg1 {[%clk 0:02:18]}  Kh8 {[%clk 0:02:15]} 18. Rg4 {[%clk 0:02:17]}  Qh3 {[%clk 0:02:11]} 19. Rdg1 {[%clk 0:02:14]}  Rf7 {[%clk 0:02:05]} 20. R4g3 {[%clk 0:02:08]}  Qh4 {[%clk 0:02:01]} 21. Rg4 {[%clk 0:02:08]}  Qe7 {[%clk 0:01:58]} 22. Bd1 {[%clk 0:01:43]}  Nb4 {[%clk 0:01:50]} 23. Bxc5 {[%clk 0:01:40]}  dxc5 {[%clk 0:01:48]} 24. a3 {[%clk 0:01:39]}  Qf8 {[%clk 0:01:25]} 25. axb4 {[%clk 0:01:26]}  Bh6 {[%clk 0:01:22]} 26. Rg8+ {[%clk 0:01:21]}  Qxg8 {[%clk 0:01:18]} 27. Rxg8+ {[%clk 0:01:22]}  Kxg8 {[%clk 0:01:17]} 28. Qxh6 {[%clk 0:01:22]}  axb4 {[%clk 0:01:18]} 29. Ne4 {[%clk 0:01:20]}  Rf4 {[%clk 0:01:11]} 30. Qg5+ {[%clk 0:01:18]}  Kf8 {[%clk 0:00:20]} 31. Qxe5 {[%clk 0:01:18]}  Ra1+ {[%clk 0:00:17]} 32. Kd2 {[%clk 0:01:17]}  Rxe4 {[%clk 0:00:17]} 33. Qxe4 {[%clk 0:01:16]} 1-0


[Site "https://www.chess.com"]

[Event "Titled Tuesday Blitz September 28 2021"]
[White "Roberson, Peter T"]
[Black "Kovalev, Vladislav"]
[WhiteFideId "412384"]
[BlackFideId "13504398"]
[WhiteElo "2283"]
[BlackElo "2573"]
[Result "0-1"]
[Round "02"]
[TimeControl "180+1"]
[Date "2021.09.28"]
[WhiteClock "0:00:10"]
[BlackClock "0:00:20"]

1. e4 {[%clk 0:03:00]}  e5 {[%clk 0:03:00]} 2. Nf3 {[%clk 0:03:00]}  Nc6 {[%clk 0:03:00]} 3. Bb5 {[%clk 0:03:00]}  a6 {[%clk 0:03:00]} 4. Ba4 {[%clk 0:03:00]}  Nf6 {[%clk 0:03:00]} 5. O-O {[%clk 0:03:01]}  Be7 {[%clk 0:03:00]} 6. Re1 {[%clk 0:03:01]}  b5 {[%clk 0:03:01]} 7. Bb3 {[%clk 0:03:01]}  d6 {[%clk 0:03:01]} 8. c3 {[%clk 0:03:01]}  O-O {[%clk 0:03:02]} 9. h3 {[%clk 0:03:01]}  Nb8 {[%clk 0:03:02]} 10. d4 {[%clk 0:03:02]}  Nbd7 {[%clk 0:03:02]} 11. Nbd2 {[%clk 0:03:01]}  c5 {[%clk 0:03:02]} 12. Nf1 {[%clk 0:02:56]}  Re8 {[%clk 0:02:57]} 13. Ng3 {[%clk 0:02:53]}  Bf8 {[%clk 0:02:55]} 14. d5 {[%clk 0:02:42]}  c4 {[%clk 0:02:55]} 15. Bc2 {[%clk 0:02:43]}  a5 {[%clk 0:02:49]} 16. Bg5 {[%clk 0:02:38]}  h6 {[%clk 0:02:48]} 17. Be3 {[%clk 0:02:38]}  g6 {[%clk 0:02:48]} 18. Qd2 {[%clk 0:02:38]}  Kh7 {[%clk 0:02:47]} 19. Nh2 {[%clk 0:02:36]}  Nc5 {[%clk 0:02:46]} 20. f4 {[%clk 0:02:28]}  exf4 {[%clk 0:02:45]} 21. Bxf4 {[%clk 0:02:28]}  Bg7 {[%clk 0:02:40]} 22. Nf3 {[%clk 0:02:20]}  Qb6 {[%clk 0:01:59]} 23. Kh1 {[%clk 0:02:20]}  Nfd7 {[%clk 0:01:59]} 24. Rf1 {[%clk 0:02:05]}  Ra7 {[%clk 0:01:57]} 25. Rae1 {[%clk 0:01:58]}  Ne5 {[%clk 0:01:54]} 26. Nxe5 {[%clk 0:01:58]}  Bxe5 {[%clk 0:01:50]} 27. Bxe5 {[%clk 0:01:54]}  Rxe5 {[%clk 0:01:45]} 28. Rf6 {[%clk 0:01:47]}  Rae7 {[%clk 0:01:42]} 29. Ref1 {[%clk 0:01:43]}  Kg7 {[%clk 0:01:40]} 30. Qf4 {[%clk 0:01:33]}  Qc7 {[%clk 0:01:40]} 31. h4 {[%clk 0:01:07]}  h5 {[%clk 0:01:25]} 32. Ne2 {[%clk 0:00:42]}  Nxe4 {[%clk 0:01:12]} 33. Nd4 {[%clk 0:00:42]}  Nxf6 {[%clk 0:01:06]} 34. Qxf6+ {[%clk 0:00:41]}  Kg8 {[%clk 0:00:51]} 35. Nxb5 {[%clk 0:00:31]}  Qb6 {[%clk 0:00:25]} 36. Nxd6 {[%clk 0:00:31]}  Re1 {[%clk 0:00:22]} 37. Nxc8 {[%clk 0:00:24]}  Qxf6 {[%clk 0:00:19]} 38. Nxe7+ {[%clk 0:00:10]}  Qxe7 {[%clk 0:00:20]} 0-1


[Site "https://www.chess.com"]

[Event "Titled Tuesday Blitz September 28 2021"]
[White "Rottenwohrer Suarez, Juan"]
[Black "Tang, Andrew"]
[WhiteFideId "32068182"]
[BlackFideId "2059630"]
[WhiteElo "2584"]
[BlackElo "2960"]
[Result "0-1"]
[Round "02"]
[TimeControl "180+1"]
[Date "2021.09.28"]
[WhiteClock "0:00:14"]
[BlackClock "0:02:16"]

1. c4 {[%clk 0:03:00]}  e6 {[%clk 0:02:57]} 2. d4 {[%clk 0:02:59]}  d5 {[%clk 0:02:58]} 3. Nc3 {[%clk 0:02:58]}  Be7 {[%clk 0:02:58]} 4. cxd5 {[%clk 0:02:57]}  exd5 {[%clk 0:02:59]} 5. Bf4 {[%clk 0:02:58]}  c6 {[%clk 0:03:00]} 6. Qc2 {[%clk 0:02:57]}  Nf6 {[%clk 0:03:00]} 7. h3 {[%clk 0:02:57]}  Ne4 {[%clk 0:02:52]} 8. Nxe4 {[%clk 0:02:46]}  dxe4 {[%clk 0:02:53]} 9. Qxe4 {[%clk 0:02:43]}  Qb6 {[%clk 0:02:53]} 10. Bd6 {[%clk 0:02:29]}  Be6 {[%clk 0:02:52]} 11. Bxe7 {[%clk 0:02:20]}  Qxb2 {[%clk 0:02:52]} 12. Rb1 {[%clk 0:02:06]}  Qc3+ {[%clk 0:02:52]} 13. Kd1 {[%clk 0:02:07]}  Kxe7 {[%clk 0:02:53]} 14. Rxb7+ {[%clk 0:02:05]}  Nd7 {[%clk 0:02:53]} 15. Qd3 {[%clk 0:01:50]}  Qxd3+ {[%clk 0:02:36]} 16. exd3 {[%clk 0:01:51]}  Rhb8 {[%clk 0:02:36]} 17. Rxb8 {[%clk 0:01:40]}  Rxb8 {[%clk 0:02:37]} 18. Kc2 {[%clk 0:01:40]}  Nb6 {[%clk 0:02:31]} 19. Nf3 {[%clk 0:01:15]}  Na4 {[%clk 0:02:27]} 20. Ne5 {[%clk 0:00:51]}  Rb2+ {[%clk 0:02:26]} 21. Kc1 {[%clk 0:00:49]}  Bd5 {[%clk 0:02:27]} 22. f3 {[%clk 0:00:18]}  Rxa2 {[%clk 0:02:23]} 23. h4 {[%clk 0:00:18]}  Bb3 {[%clk 0:02:23]} 24. Nc4 {[%clk 0:00:14]}  Rc2+ {[%clk 0:02:16]} 0-1


[Site "https://www.chess.com"]

[Event "Titled Tuesday Blitz September 28 2021"]
[White "Sadovsky, Artem"]
[Black "Sychev, Klementy"]
[WhiteFideId "4155840"]
[BlackFideId "4114060"]
[WhiteElo "2414"]
[BlackElo "2615"]
[Result "0-1"]
[Round "02"]
[TimeControl "180+1"]
[Date "2021.09.28"]
[WhiteClock "0:00:08"]
[BlackClock "0:00:17"]

1. Nf3 {[%clk 0:03:00]}  Nf6 {[%clk 0:02:48]} 2. g3 {[%clk 0:03:01]}  d6 {[%clk 0:02:42]} 3. Bg2 {[%clk 0:03:02]}  e5 {[%clk 0:02:42]} 4. O-O {[%clk 0:03:02]}  g6 {[%clk 0:02:41]} 5. b3 {[%clk 0:03:03]}  Bg7 {[%clk 0:02:41]} 6. Bb2 {[%clk 0:03:03]}  O-O {[%clk 0:02:41]} 7. c4 {[%clk 0:03:04]}  Nc6 {[%clk 0:02:36]} 8. Ne1 {[%clk 0:03:02]}  Bg4 {[%clk 0:02:32]} 9. Nc3 {[%clk 0:03:01]}  Qd7 {[%clk 0:02:30]} 10. Nc2 {[%clk 0:02:57]}  Bh3 {[%clk 0:02:24]} 11. d4 {[%clk 0:02:53]}  Nh5 {[%clk 0:01:50]} 12. dxe5 {[%clk 0:02:39]}  Nxe5 {[%clk 0:01:33]} 13. Qd2 {[%clk 0:02:35]}  Rae8 {[%clk 0:01:11]} 14. Rfe1 {[%clk 0:02:32]}  Bxg2 {[%clk 0:01:07]} 15. Kxg2 {[%clk 0:02:33]}  f5 {[%clk 0:01:07]} 16. Qd5+ {[%clk 0:02:09]}  Kh8 {[%clk 0:01:06]} 17. Qxb7 {[%clk 0:02:10]}  Nxc4 {[%clk 0:01:01]} 18. bxc4 {[%clk 0:01:47]}  Rb8 {[%clk 0:01:00]} 19. Qf3 {[%clk 0:01:28]}  Rxb2 {[%clk 0:01:00]} 20. Rac1 {[%clk 0:01:27]}  Qf7 {[%clk 0:00:51]} 21. Nd5 {[%clk 0:01:23]}  Rxa2 {[%clk 0:00:41]} 22. Ncb4 {[%clk 0:01:18]}  Rb2 {[%clk 0:00:36]} 23. Nc6 {[%clk 0:01:17]}  g5 {[%clk 0:00:35]} 24. Nxa7 {[%clk 0:00:56]}  g4 {[%clk 0:00:34]} 25. Qd3 {[%clk 0:00:43]}  f4 {[%clk 0:00:31]} 26. Rf1 {[%clk 0:00:25]}  Rxe2 {[%clk 0:00:30]} 27. gxf4 {[%clk 0:00:15]}  Ra2 {[%clk 0:00:25]} 28. Nc6 {[%clk 0:00:15]}  Nxf4+ {[%clk 0:00:19]} 29. Nxf4 {[%clk 0:00:14]}  Qxf4 {[%clk 0:00:20]} 30. Qg3 {[%clk 0:00:12]}  Qe4+ {[%clk 0:00:20]} 31. Kg1 {[%clk 0:00:13]}  Qxc6 {[%clk 0:00:20]} 32. Rce1 {[%clk 0:00:08]}  Qf3 {[%clk 0:00:17]} 33. Re7 {[%clk 0:00:07]}  Qxg3+ {[%clk 0:00:17]} 34. hxg3 {[%clk 0:00:08]} 0-1


[Site "https://www.chess.com"]

[Event "Titled Tuesday Blitz September 28 2021"]
[White "Savchenko, Boris"]
[Black "Florescu, Codrut-Constantin"]
[WhiteFideId "4147332"]
[BlackFideId "1202200"]
[WhiteElo "2543"]
[BlackElo "2243"]
[Result "1-0"]
[Round "02"]
[TimeControl "180+1"]
[Date "2021.09.28"]
[WhiteClock "0:00:08"]
[BlackClock "0:00:02"]

1. e4 {[%clk 0:01:11]}  c5 {[%clk 0:02:59]} 2. c3 {[%clk 0:01:11]}  Nf6 {[%clk 0:02:58]} 3. e5 {[%clk 0:01:11]}  Nd5 {[%clk 0:02:58]} 4. Nf3 {[%clk 0:01:11]}  e6 {[%clk 0:02:57]} 5. Bc4 {[%clk 0:01:12]}  d6 {[%clk 0:02:56]} 6. d4 {[%clk 0:01:13]}  cxd4 {[%clk 0:02:55]} 7. cxd4 {[%clk 0:01:14]}  Nc6 {[%clk 0:02:55]} 8. O-O {[%clk 0:01:14]}  Be7 {[%clk 0:02:53]} 9. Re1 {[%clk 0:01:14]}  a6 {[%clk 0:02:50]} 10. Qe2 {[%clk 0:01:15]}  dxe5 {[%clk 0:02:48]} 11. dxe5 {[%clk 0:01:15]}  b5 {[%clk 0:02:47]} 12. Bd3 {[%clk 0:01:14]}  Bb7 {[%clk 0:02:44]} 13. Nc3 {[%clk 0:01:12]}  Nxc3 {[%clk 0:02:43]} 14. bxc3 {[%clk 0:01:12]}  h6 {[%clk 0:02:40]} 15. Bf4 {[%clk 0:01:07]}  Qc7 {[%clk 0:02:37]} 16. Rad1 {[%clk 0:01:06]}  Na5 {[%clk 0:02:33]} 17. Be4 {[%clk 0:01:04]}  Bxe4 {[%clk 0:02:29]} 18. Qxe4 {[%clk 0:01:05]}  O-O {[%clk 0:02:29]} 19. h4 {[%clk 0:01:00]}  Rad8 {[%clk 0:02:19]} 20. Bd2 {[%clk 0:00:59]}  Qc4 {[%clk 0:02:13]} 21. Qb1 {[%clk 0:00:58]}  Rd3 {[%clk 0:02:05]} 22. Nd4 {[%clk 0:00:54]}  Rd8 {[%clk 0:01:55]} 23. Re4 {[%clk 0:00:54]}  Nc6 {[%clk 0:01:50]} 24. Bxh6 {[%clk 0:00:26]}  Rxd1+ {[%clk 0:01:31]} 25. Qxd1 {[%clk 0:00:27]}  gxh6 {[%clk 0:01:28]} 26. Qh5 {[%clk 0:00:24]}  Nxd4 {[%clk 0:01:19]} 27. Rg4+ {[%clk 0:00:20]}  Kf8 {[%clk 0:01:18]} 28. Qxh6+ {[%clk 0:00:18]}  Ke8 {[%clk 0:01:18]} 29. cxd4 {[%clk 0:00:15]}  Qd3 {[%clk 0:00:47]} 30. Qh8+ {[%clk 0:00:12]}  Kd7 {[%clk 0:00:43]} 31. Qg7 {[%clk 0:00:12]}  Qb1+ {[%clk 0:00:30]} 32. Kh2 {[%clk 0:00:12]}  Qf5 {[%clk 0:00:31]} 33. f3 {[%clk 0:00:11]}  Rf8 {[%clk 0:00:19]} 34. h5 {[%clk 0:00:11]}  Ke8 {[%clk 0:00:18]} 35. h6 {[%clk 0:00:11]}  Qh5+ {[%clk 0:00:16]} 36. Kg3 {[%clk 0:00:12]}  Qh1 {[%clk 0:00:14]} 37. h7 {[%clk 0:00:11]}  Qh5 {[%clk 0:00:13]} 38. Qg8 {[%clk 0:00:10]}  Qh6 {[%clk 0:00:10]} 39. f4 {[%clk 0:00:09]}  Qh5 {[%clk 0:00:10]} 40. Qg7 {[%clk 0:00:07]}  b4 {[%clk 0:00:09]} 41. d5 {[%clk 0:00:07]}  exd5 {[%clk 0:00:09]} 42. f5 {[%clk 0:00:07]}  Qxf5 {[%clk 0:00:06]} 43. Qxf8+ {[%clk 0:00:07]}  Bxf8 {[%clk 0:00:06]} 44. h8=Q {[%clk 0:00:08]}  Qd3+ {[%clk 0:00:04]} 45. Kh2 {[%clk 0:00:08]}  Qe2 {[%clk 0:00:04]} 46. Rg8 {[%clk 0:00:08]}  Qh5+ {[%clk 0:00:02]} 47. Qxh5 {[%clk 0:00:08]} 1-0


[Site "https://www.chess.com"]

[Event "Titled Tuesday Blitz September 28 2021"]
[White "Seemann, Jakub"]
[Black "Tristan, Leonardo"]
[WhiteFideId "21874697"]
[BlackFideId "113816"]
[WhiteElo "1849"]
[BlackElo "2404"]
[Result "0-1"]
[Round "02"]
[TimeControl "180+1"]
[Date "2021.09.28"]
[WhiteClock "0:00:03"]
[BlackClock "0:00:12"]

1. g3 {[%clk 0:03:00]}  d5 {[%clk 0:03:00]} 2. Bg2 {[%clk 0:03:00]}  Nf6 {[%clk 0:03:00]} 3. Nf3 {[%clk 0:03:00]}  Bf5 {[%clk 0:03:00]} 4. O-O {[%clk 0:02:59]}  e6 {[%clk 0:03:00]} 5. d3 {[%clk 0:02:58]}  Be7 {[%clk 0:03:00]} 6. b3 {[%clk 0:02:58]}  O-O {[%clk 0:03:00]} 7. Bb2 {[%clk 0:02:59]}  h6 {[%clk 0:03:01]} 8. Nbd2 {[%clk 0:02:58]}  Bh7 {[%clk 0:03:01]} 9. c4 {[%clk 0:02:58]}  c6 {[%clk 0:03:01]} 10. Rc1 {[%clk 0:02:58]}  Nbd7 {[%clk 0:03:02]} 11. Rc2 {[%clk 0:02:58]}  a5 {[%clk 0:03:02]} 12. a3 {[%clk 0:02:58]}  Bd6 {[%clk 0:02:57]} 13. Qa1 {[%clk 0:02:58]}  e5 {[%clk 0:02:57]} 14. Nxe5 {[%clk 0:02:56]}  Nxe5 {[%clk 0:02:57]} 15. Bxe5 {[%clk 0:02:56]}  Bxe5 {[%clk 0:02:58]} 16. Qxe5 {[%clk 0:02:56]}  Re8 {[%clk 0:02:59]} 17. Qd4 {[%clk 0:02:45]}  Rxe2 {[%clk 0:02:41]} 18. cxd5 {[%clk 0:02:28]}  Nxd5 {[%clk 0:02:41]} 19. Bf3 {[%clk 0:02:28]}  Re7 {[%clk 0:02:19]} 20. Nc4 {[%clk 0:02:06]}  Nf6 {[%clk 0:01:45]} 21. Qc5 {[%clk 0:01:42]}  Nd7 {[%clk 0:01:23]} 22. Qd4 {[%clk 0:01:21]}  Ne5 {[%clk 0:01:21]} 23. Qxd8+ {[%clk 0:01:04]}  Rxd8 {[%clk 0:01:22]} 24. Be4 {[%clk 0:00:58]}  f5 {[%clk 0:00:39]} 25. Bg2 {[%clk 0:00:46]}  Nxd3 {[%clk 0:00:29]} 26. Nxa5 {[%clk 0:00:39]}  f4 {[%clk 0:00:30]} 27. Rd1 {[%clk 0:00:31]}  Re1+ {[%clk 0:00:19]} 28. Rxe1 {[%clk 0:00:29]}  Nxe1 {[%clk 0:00:20]} 29. Rc1 {[%clk 0:00:20]}  Nd3 {[%clk 0:00:17]} 30. Rd1 {[%clk 0:00:19]}  Ra8 {[%clk 0:00:14]} 31. b4 {[%clk 0:00:18]}  b6 {[%clk 0:00:13]} 32. Bxc6 {[%clk 0:00:16]}  Rf8 {[%clk 0:00:11]} 33. Bd5+ {[%clk 0:00:15]}  Kh8 {[%clk 0:00:11]} 34. Nc4 {[%clk 0:00:12]}  b5 {[%clk 0:00:11]} 35. Nd6 {[%clk 0:00:11]}  fxg3 {[%clk 0:00:11]} 36. fxg3 {[%clk 0:00:07]}  Bg6 {[%clk 0:00:09]} 37. Nf7+ {[%clk 0:00:05]}  Kh7 {[%clk 0:00:07]} 38. Nd6 {[%clk 0:00:04]}  Rd8 {[%clk 0:00:06]} 39. Be4 {[%clk 0:00:02]}  Rxd6 {[%clk 0:00:06]} 40. Bxg6+ {[%clk 0:00:03]}  Kxg6 {[%clk 0:00:07]} 41. Kf1 {[%clk 0:00:01]}  Kf5 {[%clk 0:00:07]} 42. Ke2 {[%clk 0:00:02]}  Ke4 {[%clk 0:00:08]} 43. Rf1 {[%clk 0:00:01]}  Ne5 {[%clk 0:00:07]} 44. Rf4+ {[%clk 0:00:01]}  Kd5 {[%clk 0:00:08]} 45. Ke3 {[%clk 0:00:02]}  Nc4+ {[%clk 0:00:08]} 46. Kd3 {[%clk 0:00:02]}  Nxa3 {[%clk 0:00:09]} 47. Kc3 {[%clk 0:00:01]}  Nc4 {[%clk 0:00:08]} 48. Kb3 {[%clk 0:00:01]}  Kc6 {[%clk 0:00:08]} 49. Rf5 {[%clk 0:00:01]}  Rd3+ {[%clk 0:00:08]} 50. Kc2 {[%clk 0:00:01]}  Rd2+ {[%clk 0:00:09]} 51. Kc3 {[%clk 0:00:02]}  Rxh2 {[%clk 0:00:09]} 52. Rc5+ {[%clk 0:00:03]}  Kb6 {[%clk 0:00:09]} 53. Rf5 {[%clk 0:00:04]}  Rg2 {[%clk 0:00:10]} 54. Rf7 {[%clk 0:00:04]}  Rxg3+ {[%clk 0:00:10]} 55. Kd4 {[%clk 0:00:05]}  Rg4+ {[%clk 0:00:10]} 56. Kd5 {[%clk 0:00:05]}  Rg5+ {[%clk 0:00:11]} 57. Kd4 {[%clk 0:00:05]}  h5 {[%clk 0:00:11]} 58. Rf3 {[%clk 0:00:04]}  h4 {[%clk 0:00:11]} 59. Rh3 {[%clk 0:00:03]}  Rg4+ {[%clk 0:00:11]} 60. Kd5 {[%clk 0:00:04]}  g5 {[%clk 0:00:12]} 61. Rf3 {[%clk 0:00:04]}  Rf4 {[%clk 0:00:12]} 62. Rd3 {[%clk 0:00:02]}  g4 {[%clk 0:00:12]} 63. Ke6 {[%clk 0:00:03]}  g3 {[%clk 0:00:12]} 0-1


[Site "https://www.chess.com"]

[Event "Titled Tuesday Blitz September 28 2021"]
[White "Shkapenko, Pavel"]
[Black "Saravana, Krishnan P."]
[WhiteFideId "4151933"]
[BlackFideId "5018382"]
[WhiteElo "2386"]
[BlackElo "2245"]
[Result "1-0"]
[Round "02"]
[TimeControl "180+1"]
[Date "2021.09.28"]
[WhiteClock "0:00:31"]
[BlackClock "0:01:13"]

1. e4 {[%clk 0:03:00]}  c6 {[%clk 0:02:58]} 2. d4 {[%clk 0:03:00]}  d5 {[%clk 0:02:58]} 3. e5 {[%clk 0:03:00]}  Bf5 {[%clk 0:02:56]} 4. h4 {[%clk 0:02:59]}  h6 {[%clk 0:02:56]} 5. g4 {[%clk 0:02:58]}  Bd7 {[%clk 0:02:55]} 6. h5 {[%clk 0:02:58]}  e6 {[%clk 0:02:55]} 7. c3 {[%clk 0:02:59]}  c5 {[%clk 0:02:55]} 8. Na3 {[%clk 0:02:59]}  Qb6 {[%clk 0:02:55]} 9. Nc2 {[%clk 0:02:59]}  Nc6 {[%clk 0:02:53]} 10. Nf3 {[%clk 0:02:59]}  Rc8 {[%clk 0:02:52]} 11. Bd3 {[%clk 0:02:52]}  cxd4 {[%clk 0:02:52]} 12. Ncxd4 {[%clk 0:02:52]}  Nxd4 {[%clk 0:02:48]} 13. cxd4 {[%clk 0:02:50]}  Bb5 {[%clk 0:02:48]} 14. O-O {[%clk 0:02:45]}  Bxd3 {[%clk 0:02:46]} 15. Qxd3 {[%clk 0:02:46]}  Ne7 {[%clk 0:02:45]} 16. Be3 {[%clk 0:02:44]}  Nc6 {[%clk 0:02:40]} 17. Rfc1 {[%clk 0:02:43]}  Be7 {[%clk 0:02:38]} 18. Rc3 {[%clk 0:02:23]}  O-O {[%clk 0:02:33]} 19. Rb3 {[%clk 0:02:23]}  Qa6 {[%clk 0:02:32]} 20. Qxa6 {[%clk 0:02:21]}  bxa6 {[%clk 0:02:32]} 21. Rc1 {[%clk 0:02:19]}  Rc7 {[%clk 0:02:26]} 22. Rbc3 {[%clk 0:02:12]}  Rfc8 {[%clk 0:02:26]} 23. R3c2 {[%clk 0:02:00]}  Bd8 {[%clk 0:02:23]} 24. Kg2 {[%clk 0:01:55]}  Kf8 {[%clk 0:02:16]} 25. Ne1 {[%clk 0:01:52]}  Ke8 {[%clk 0:02:10]} 26. Nd3 {[%clk 0:01:41]}  Be7 {[%clk 0:02:08]} 27. f4 {[%clk 0:01:38]}  Kd7 {[%clk 0:02:07]} 28. f5 {[%clk 0:01:14]}  exf5 {[%clk 0:01:55]} 29. gxf5 {[%clk 0:01:14]}  Ke8 {[%clk 0:01:44]} 30. Nf4 {[%clk 0:01:06]}  Bg5 {[%clk 0:01:23]} 31. Nxd5 {[%clk 0:01:06]}  Bxe3 {[%clk 0:01:23]} 32. Nxc7+ {[%clk 0:01:03]}  Kd8 {[%clk 0:01:14]} 33. Rxc6 {[%clk 0:00:51]}  Bxc1 {[%clk 0:01:14]} 34. Rxc1 {[%clk 0:00:51]}  Rxc7 {[%clk 0:01:13]} 35. Rxc7 {[%clk 0:00:51]}  Kxc7 {[%clk 0:01:14]} 36. Kf3 {[%clk 0:00:52]}  Kc6 {[%clk 0:01:14]} 37. Ke4 {[%clk 0:00:52]}  f6 {[%clk 0:01:15]} 38. d5+ {[%clk 0:00:43]}  Kc5 {[%clk 0:01:13]} 39. e6 {[%clk 0:00:42]}  Kd6 {[%clk 0:01:11]} 40. Kd4 {[%clk 0:00:42]}  a5 {[%clk 0:01:12]} 41. Kc4 {[%clk 0:00:40]}  a6 {[%clk 0:01:12]} 42. Kb3 {[%clk 0:00:37]}  g5 {[%clk 0:01:13]} 43. fxg6 {[%clk 0:00:31]} 1-0


[Site "https://www.chess.com"]

[Event "Titled Tuesday Blitz September 28 2021"]
[White "Shuvalov, Evgenij"]
[Black "Leitao, Rafael"]
[WhiteFideId "4187237"]
[BlackFideId "2101246"]
[WhiteElo "2129"]
[BlackElo "2609"]
[Result "0-1"]
[Round "02"]
[TimeControl "180+1"]
[Date "2021.09.28"]
[WhiteClock "0:00:22"]
[BlackClock "0:00:55"]

1. Nf3 {[%clk 0:02:57]}  Nf6 {[%clk 0:02:58]} 2. c4 {[%clk 0:02:57]}  e6 {[%clk 0:02:58]} 3. g3 {[%clk 0:02:57]}  d5 {[%clk 0:02:56]} 4. Bg2 {[%clk 0:02:57]}  Be7 {[%clk 0:02:54]} 5. O-O {[%clk 0:02:56]}  O-O {[%clk 0:02:53]} 6. b3 {[%clk 0:02:56]}  d4 {[%clk 0:02:52]} 7. e3 {[%clk 0:02:54]}  c5 {[%clk 0:02:51]} 8. exd4 {[%clk 0:02:54]}  cxd4 {[%clk 0:02:49]} 9. Ne5 {[%clk 0:02:53]}  Nfd7 {[%clk 0:02:45]} 10. Nxd7 {[%clk 0:02:48]}  Nxd7 {[%clk 0:02:44]} 11. f4 {[%clk 0:02:45]}  a5 {[%clk 0:02:31]} 12. d3 {[%clk 0:02:43]}  Nc5 {[%clk 0:02:32]} 13. Ba3 {[%clk 0:02:39]}  Rb8 {[%clk 0:02:25]} 14. Bxc5 {[%clk 0:02:35]}  Bxc5 {[%clk 0:02:25]} 15. Nd2 {[%clk 0:02:31]}  b6 {[%clk 0:02:18]} 16. a3 {[%clk 0:02:27]}  Qe7 {[%clk 0:02:16]} 17. Qc1 {[%clk 0:02:15]}  Bd7 {[%clk 0:02:13]} 18. Qb2 {[%clk 0:02:13]}  b5 {[%clk 0:02:11]} 19. Ne4 {[%clk 0:02:04]}  bxc4 {[%clk 0:02:02]} 20. Nxc5 {[%clk 0:02:03]}  Qxc5 {[%clk 0:02:00]} 21. dxc4 {[%clk 0:02:02]}  Qxc4 {[%clk 0:01:49]} 22. bxc4 {[%clk 0:01:58]}  Rxb2 {[%clk 0:01:48]} 23. Rfd1 {[%clk 0:01:57]}  Rc8 {[%clk 0:01:30]} 24. Rxd4 {[%clk 0:01:57]}  Be8 {[%clk 0:01:30]} 25. Rad1 {[%clk 0:01:50]}  Kf8 {[%clk 0:01:29]} 26. Bf1 {[%clk 0:01:37]}  Ra2 {[%clk 0:01:27]} 27. R1d3 {[%clk 0:01:31]}  Bc6 {[%clk 0:01:23]} 28. Rd8+ {[%clk 0:01:25]}  Rxd8 {[%clk 0:01:23]} 29. Rxd8+ {[%clk 0:01:26]}  Ke7 {[%clk 0:01:23]} 30. Rd3 {[%clk 0:01:20]}  Rb2 {[%clk 0:01:17]} 31. Rd1 {[%clk 0:00:53]}  Rb3 {[%clk 0:01:14]} 32. Ra1 {[%clk 0:00:52]}  Kd6 {[%clk 0:01:11]} 33. Kf2 {[%clk 0:00:51]}  Kc5 {[%clk 0:01:09]} 34. Be2 {[%clk 0:00:49]}  f6 {[%clk 0:01:06]} 35. Ra2 {[%clk 0:00:46]}  e5 {[%clk 0:01:06]} 36. fxe5 {[%clk 0:00:45]}  fxe5 {[%clk 0:01:07]} 37. Ra1 {[%clk 0:00:44]}  e4 {[%clk 0:01:07]} 38. Ra2 {[%clk 0:00:44]}  e3+ {[%clk 0:01:07]} 39. Ke1 {[%clk 0:00:34]}  Rb1+ {[%clk 0:01:05]} 40. Bd1 {[%clk 0:00:34]}  Bf3 {[%clk 0:01:02]} 41. Re2 {[%clk 0:00:31]}  Rxd1+ {[%clk 0:00:57]} 42. Kxd1 {[%clk 0:00:31]}  Kxc4 {[%clk 0:00:56]} 43. Ke1 {[%clk 0:00:31]}  Bxe2 {[%clk 0:00:57]} 44. Kxe2 {[%clk 0:00:32]}  Kd4 {[%clk 0:00:57]} 45. a4 {[%clk 0:00:29]}  g5 {[%clk 0:00:56]} 46. g4 {[%clk 0:00:23]}  Ke4 {[%clk 0:00:55]} 47. Ke1 {[%clk 0:00:22]}  Kf3 {[%clk 0:00:55]} 0-1


[Site "https://www.chess.com"]